[Event "86th Tata Steel Challengers 2024"]
[Site "Scheveningen"]
[Date "2024.01.23"]
[Round "9.1"]
[White "Dardha, Daniel"]
[Black "Salem, A.R. Saleh"]
[Result "1-0"]
[ECO "A17"]
[WhiteElo "2602"]
[BlackElo "2630"]
[Annotator "TA"]
[PlyCount "65"]
[EventDate "2024.01.02"]
[EventType "tourn"]
[EventCountry "NED"]
[SourceTitle "playchess.com"]
[Source "ChessBase"]
[SourceQuality "1"]
[TimeControl "40/6000+30:20/3000+30:900+30"]

{[%evp 9,65,5,27,1,1,8,6,2,6,12,18,0,16,17,19,23,79,82,111,119,102,82,76,81,72,48,127,143,245,245,239,244,246,229,245,234,233,235,239,210,258,262,287,294,550,551,502,391,671,608,666,650,655,666,820,765,764,754]} 1. Nf3 {[%emt 0:00:05]} Nf6 {[%emt 0:01:01]} 2. c4 {[%emt 0:00:06]} c5 {[%emt 0:01:47]} 3. Nc3 {[%emt 0:00:26]} e6 {[%emt 0:02:12]} 4. e3 {[%emt 0:00:29]} d5 {[%emt 0:00:07]} 5. cxd5 {[%emt 0:00:17]} Nxd5 {[%emt 0:01:35]} 6. Bc4 {[%emt 0:00:31]} Be7 {[%emt 0:00:10]} 7. O-O {[%emt 0:00:25]} O-O {[%emt 0:00:08]} 8. d4 {[%emt 0:00:51] The position is equal.} Nxc3 {[%emt 0:02:08]} 9. bxc3 {[%emt 0:00:16]} Qc7 {[%emt 0:00:15]} 10. Bd3 {[%emt 0:15:00]} Nc6 {[%emt 0:03:56]} 11. e4 {[%emt 0:08:07][%cal Be3e4,Be4e5][%mdl 32]} Rd8 {[%emt 0:12:33]} 12. Be3 {[%emt 0:03:27]} Na5 {[%emt 0:14:45] [#]} (12... b6 $11 {remains equal.}) 13. e5 $1 $16 {[%emt 0:03:58]} g6 {[%emt 0:15:04]} 14. Ng5 {[%emt 0:06:29] White is more active.} cxd4 {[%emt 0:09:04]} 15. cxd4 {[%emt 0:00:17]} Bxg5 {[%emt 0:11:08]} 16. Bxg5 {[%emt 0:00:19] Threatens to win with Rc1.} Rxd4 {[%emt 0:00:03]} 17. Qe2 {[%emt 0:03:25] Rac1 would now be deadly.} Nc6 {[%emt 0:03:20] Black is on the road to losing.} ({Better is} 17... Qc3 $14 18. Rfd1 Bd7) 18. Bf6 {[%emt 0:01:44] This pair of bishops is nice.} Rf4 {[%emt 0:13:41]} (18... Ne7 $16 {was called for.}) 19. Qe3 $18 {[%emt 0:04:28]} Rxf6 {[%emt 0:00:09]} 20. exf6 {[%emt 0:00:05] White threatens Qh6 and mate.} Qd8 {[%emt 0:00:04] [#]} 21. Qg5 {[%emt 0:01:02]} h6 {[%emt 0:01:10]} (21... Qxd3 22. Qh6) (21... Nb4 22. Rfd1) 22. Qh4 {[%emt 0:00:39]} ({Don't play} 22. Qxh6 Qxf6 23. Be4 e5 24. Bxc6 Qxc6) 22... e5 {[%emt 0:00:45]} ({Weaker is} 22... Qxd3 23. Qxh6) 23. Rad1 {[%emt 0:02:05][%cal Od3g6]} Qf8 {[%emt 0:00:12]} 24. Qg3 {[%emt 0:01:55][%cal Od3g6] Black must now prevent Bxg6!} Be6 {[%emt 0:00:44]} 25. Be4 {[%emt 0:00:40]} Re8 {[%emt 0:02:46]} 26. Rfe1 {[%emt 0:02:08]} Bxa2 $2 {[%emt 0:00:44] [#]} (26... Kh8 27. Rb1 Rb8 28. Bxc6 bxc6 29. Qxe5 Rc8) 27. Bxg6 $1 {[%emt 0:01:33][%mdl 512]} Kh8 {[%emt 0:00:24]} 28. Be4 {[%emt 0:03:56]} Nd4 $2 {[%emt 0:02:06]} (28... Qg8 29. Qa3 Be6) 29. Qh4 {[%emt 0:00:41] White is clearly winning.} Bc4 {[%emt 0:03:42]} 30. Re3 {[%emt 0:02:29]} Rd8 {[%emt 0:00:32]} 31. Rde1 {[%emt 0:02:17] Prevents Ne2+} (31. Bxb7 $2 {gets mated.} Ne2+ 32. Rxe2 Rxd1+) 31... Ne2+ {[%emt 0:05:12]} 32. R1xe2 {[%emt 0:01:59]} Bxe2 {[%emt 0:00:16]} 33. h3 {[%emt 0:00:06] Weighted Error Value: White=0.13 (very precise) /Black=0.47.  Mistake:       	---       	Black=5      Inaccurate:     	---       	Black=1      OK:         	White=13    	Black=10     Best:        	White=1     	Black=2      Strong:       	White=1     	---        Brilliant:      	White=1     	---} 1-0

[Event "86th Tata Steel Challengers 2024"]
[Site "Scheveningen"]
[Date "2024.01.23"]
[Round "9.2"]
[White "L'Ami, Erwin"]
[Black "Yilmaz, Mustafa"]
[Result "1/2-1/2"]
[ECO "D38"]
[WhiteElo "2627"]
[BlackElo "2665"]
[Annotator "TA"]
[PlyCount "62"]
[EventDate "2024.01.02"]
[EventType "tourn"]
[EventCountry "NED"]
[SourceTitle "playchess.com"]
[Source "ChessBase"]
[SourceQuality "1"]
[TimeControl "40/6000+30:20/3000+30:900+30"]

{[%evp 18,62,6,8,0,0,10,11,10,12,17,6,7,6,40,0,0,0,0,0,0,0,0,0,10,12,4,5,8,7,9,5,7,4,7,5,10,0,0,0,0,0,2,0,0,0,0]} 1. d4 {[%emt 0:00:05]} Nf6 {[%emt 0:00:04]} 2. c4 {[%emt 0:00:14]} e6 {[%emt 0:00:05]} 3. Nf3 {[%emt 0:00:12]} d5 {[%emt 0:00:07]} 4. Nc3 {[%emt 0:00:16]} Bb4 {[%emt 0:00:09]} 5. Bg5 {[%emt 0:00:23]} h6 {[%emt 0:00:21]} 6. Bxf6 {[%emt 0:00:10]} Qxf6 {[%emt 0:00:07]} 7. e3 {[%emt 0:00:17]} O-O {[%emt 0:00:20]} 8. Rc1 {[%emt 0:00:08]} dxc4 {[%emt 0:00:37]} 9. Bxc4 {[%emt 0:00:09]} c5 {[%emt 0:00:07]} 10. O-O {[%emt 0:00:13]} cxd4 {[%emt 0:00:42] D38: Queen's Gambit Declined: Ragozin Defence (4 Nf3 Bb4).} 11. Ne4 {[%emt 0:00:13]} Qe7 {[%emt 0:00:30]} 12. a3 {[%emt 0:00:09]} Ba5 {[%emt 0:00:19]} 13. Qxd4 {[%emt 0:00:11]} Rd8 {[%emt 0:02:28] Wards off Qd6} 14. Qc5 {[%emt 0:00:39]} (14. Qe5 {is interesting.} Bb6 15. Rfd1 Nc6 16. Rxd8+ Bxd8 17. Qc3) 14... Qxc5 {[%emt 0:04:21]} 15. Nxc5 {[%emt 0:00:10] [#]} Bb6 $146 {[%emt 0:28:47]} (15... Nd7 $5 {[%cal Rd7c5]}) ({Predecessor:} 15... Nd7 16. Nb3 Bb6 17. Be2 Nf6 18. Ne5 Bd7 19. Nc5 Bxc5 20. Rxc5 Rac8 21. Rfc1 Rxc5 22. Rxc5 {½-½ Martirosyan,H (2685)-Robson,R (2689) Prague Masters 5th 2023 (1)}) 16. Nb3 {[%emt 0:01:32]} Nc6 {[%emt 0:15:20] The position is equal.} 17. Bb5 {[%emt 0:08:56]} Bd7 {[%emt 0:02:36]} 18. Nc5 {[%emt 0:03:23]} Bxc5 {[%emt 0:00:54]} 19. Rxc5 {[%emt 0:01:47]} Rac8 {[%emt 0:01:05]} 20. Rfc1 {[%emt 0:00:56]} Nb8 {[%emt 0:13:04] [#] aiming for ...Rxc5.} 21. Bxd7 {[%emt 0:07:06]} Rxc5 {[%emt 0:00:07]} 22. Rxc5 {[%emt 0:00:09] Threatens to win with Ba4.} Nxd7 $11 {[%emt 0:00:33][%mdl 4096] Endgame KRN-KRN} 23. Rc7 {[%emt 0:04:44][%cal Og1f1]} Nb6 {[%emt 0:01:27] ( -> ...Rd1+)} 24. Kf1 {[%emt 0:03:36]} Rd7 {[%emt 0:00:17]} 25. Rc2 {[%emt 0:06:15]} Kf8 {[%emt 0:03:06]} 26. Ke2 {[%emt 0:00:58]} Rd8 {[%emt 0:03:49]} 27. Ne5 {[%emt 0:05:55] Rc7 would be deadly.} Rc8 {[%emt 0:03:26] Inhibits Rc7.} 28. Rxc8+ {[%emt 0:01:38]} Nxc8 {[%emt 0:00:03]} 29. Kd3 {[%emt 0:00:38]} Ke7 {[%emt 0:00:11]} 30. e4 {[%emt 0:01:20]} f6 {[%emt 0:07:03]} 31. Nc4 {[%emt 0:01:47]} e5 {[%emt 0:04:34] An interesting draw.   Weighted Error Value: White=0.04 (flawless) /Black=0.03 (flawless)} 1/2-1/2

[Event "86th Tata Steel Challengers 2024"]
[Site "Scheveningen"]
[Date "2024.01.23"]
[Round "9.3"]
[White "Dronavalli, Harika"]
[Black "Niemann, Hans Moke"]
[Result "0-1"]
[ECO "A32"]
[WhiteElo "2500"]
[BlackElo "2692"]
[Annotator "TA"]
[PlyCount "86"]
[EventDate "2024.01.02"]
[EventType "tourn"]
[EventCountry "NED"]
[SourceTitle "playchess.com"]
[Source "ChessBase"]
[SourceQuality "1"]
[TimeControl "40/6000+30:20/3000+30:900+30"]

{[%evp 13,86,7,20,0,0,0,1,0,4,-21,-14,-41,-1,-29,-26,-33,-40,-41,-42,-43,-44,-41,-35,-40,-31,-48,-45,-39,-42,-50,-46,-33,-45,-42,-43,-45,-49,-41,-41,-33,-31,-138,-154,-148,-135,-187,-169,-212,-192,-252,-225,-225,-230,-382,-359,-375,-221,-291,-292,-390,-411,-411,-416,-580,-607,-590,-581,-575,-560,-677,-653,-822,-803,-965,-938]} 1. d4 {[%emt 0:00:14]} Nf6 {[%emt 0:00:21]} 2. c4 {[%emt 0:00:15]} e6 {[%emt 0:00:15]} 3. g3 {[%emt 0:00:16]} c5 {[%emt 0:00:34]} 4. Nf3 {[%emt 0:00:36]} cxd4 {[%emt 0:00:09]} 5. Nxd4 {[%emt 0:00:14]} a6 {[%emt 0:00:08]} 6. Bg2 {[%emt 0:01:18]} Qc7 {[%emt 0:00:32]} 7. Nd2 {[%emt 0:09:49]} Nc6 {[%emt 0:02:57]} 8. N4f3 {[%emt 0:02:52] A32: Symmetrical English: 2 Nf3 Nf6 3 d4 cxd4 4 Nxd4 e6.} Be7 {[%emt 0:02:38]} 9. O-O {[%emt 0:01:25]} O-O {[%emt 0:02:46]} 10. a3 {[%emt 0:11:31] The position is equal.} b5 {[%emt 0:02:49][%cal Bb7b5,Bb5b4][%mdl 32] [#]} 11. b3 $146 {[%emt 0:07:39]} ({Predecessor:} 11. b4 Bb7 12. cxb5 axb5 13. Bb2 Qb6 14. e4 d6 15. Qe2 Rab8 16. Rfd1 Ng4 17. h3 {0-1 Criado de Diego,P (2123)-Barria Zuniga,D (2420) Galapagar op 07th 2006 (3)}) 11... Bb7 {[%emt 0:04:35]} 12. Bb2 {[%emt 0:00:07]} b4 {[%emt 0:02:21]} 13. a4 {[%emt 0:03:09]} d6 {[%emt 0:00:30]} 14. Qc2 {[%emt 0:05:55]} Nd7 {[%emt 0:01:01]} 15. Rad1 {[%emt 0:02:00]} Na5 {[%emt 0:05:09]} 16. e4 {[%emt 0:02:08]} Bf6 {[%emt 0:01:21]} 17. Bxf6 {[%emt 0:02:06]} Nxf6 {[%emt 0:00:15]} 18. Ne1 {[%emt 0:03:32]} Nc6 {[%emt 0:02:35][%cal Ba5c6,Bc6d8,Bd8e6,Be6c5][%mdl 32]} 19. Ndf3 {[%emt 0:04:38]} e5 {[%emt 0:07:44]} 20. Qe2 {[%emt 0:02:21]} Nd8 {[%emt 0:01:20]} 21. Nh4 {[%emt 0:05:16]} Ne6 {[%emt 0:00:24]} 22. Nf5 {[%emt 0:01:26]} Rad8 {[%emt 0:02:49]} 23. Nc2 {[%emt 0:03:22]} a5 {[%emt 0:00:47] Hoping for ...Nc5.} 24. f3 $1 {[%emt 0:00:46]} Nc5 {[%emt 0:00:50]} 25. Rb1 {[%emt 0:02:25]} g6 {[%emt 0:00:36]} 26. Nfe3 {[%emt 0:00:09]} h5 {[%emt 0:00:24][%cal Oh5h4]} 27. Nd5 {[%emt 0:04:43] White is now going downhill.} (27. h4 $15) 27... Nxd5 $17 {[%emt 0:01:03]} 28. exd5 {[%emt 0:00:04]} Bc8 {[%emt 0:00:24] Black is more active.} 29. Rf2 {[%emt 0:01:59]} (29. Ne1 $17 {was called for.}) 29... Rde8 {[%emt 0:02:01]} 30. Qf1 {[%emt 0:10:07]} Qa7 {[%emt 0:01:49]} 31. Kh1 {[%emt 0:00:05]} (31. Qc1 $142) 31... Bf5 {[%emt 0:00:29]} 32. Qg1 {[%emt 0:07:37]} Qe7 {[%emt 0:06:07]} 33. Qd1 $2 {[%emt 0:01:29]} (33. Rb2 {was worth a try.}) 33... h4 $19 {[%emt 0:02:50][%cal Bh5h4,Bh4h3][%mdl 32]} 34. g4 {[%emt 0:00:57]} Bc8 {[%emt 0:00:25]} (34... Bd3 $142 {White must now prevent ...e4.} 35. Bf1 e4) 35. Ne3 {[%emt 0:02:35] [#]} h3 $1 {[%emt 0:00:51][%mdl 512]} 36. Bf1 {[%emt 0:01:32]} (36. Bxh3 Qh4) 36... Qh4 {[%emt 0:00:30]} 37. Qe1 {[%emt 0:03:29]} f5 {[%emt 0:01:33]} 38. Re2 {[%emt 0:01:57]} Qxe1 {[%emt 0:00:41] Black is clearly winning.} 39. Rexe1 {[%emt 0:00:14]} fxg4 {[%emt 0:00:32]} 40. fxg4 {[%emt 0:00:50]} Rf3 {[%emt 0:00:43] Threatens to win with ...Ref8. White is weak on the dark squares} 41. Kg1 {[%emt 0:52:50]} Ref8 {[%emt 0:51:04][%cal Be8f8,Bf8f4,Bf4e4][%mdl 32]} 42. Rb2 {[%emt 0:02:22]} R8f4 {[%emt 0:00:08] And now ...Re4 would win.} 43. Ree2 {[%emt 0:00:46]} Re4 {[%emt 0:00:16] Weighted Error Value: White=0.42/Black=0.08 (flawless)} 0-1

[Event "86th Tata Steel Challengers 2024"]
[Site "Scheveningen"]
[Date "2024.01.23"]
[Round "9.4"]
[White "Roebers, Eline"]
[Black "Vrolijk, Liam"]
[Result "0-1"]
[ECO "C38"]
[WhiteElo "2381"]
[BlackElo "2573"]
[Annotator "TA"]
[PlyCount "62"]
[EventDate "2024.01.02"]
[EventType "tourn"]
[EventCountry "NED"]
[SourceTitle "playchess.com"]
[Source "ChessBase"]
[SourceQuality "1"]
[TimeControl "40/6000+30:20/3000+30:900+30"]

{[%evp 13,62,-69,-72,-120,-108,-110,-130,-143,-133,-143,-150,-179,-120,-97,-82,-420,-420,-414,-403,-587,-450,-421,-357,-362,-58,-52,-65,-69,-63,-75,-65,-75,-86,-107,8,21,6,-86,-56,-83,8,9,7,0,40,14,10,-1006,-1012,-1005,-1005]} 1. e4 {[%emt 0:00:03]} e5 {[%emt 0:00:08]} 2. f4 {[%emt 0:00:03]} exf4 {[%emt 0:00:25]} 3. Bc4 {[%emt 0:00:04]} Nc6 {[%emt 0:04:49]} 4. Nf3 {[%emt 0:00:25]} g5 {[%emt 0:10:23]} 5. O-O {[%emt 0:00:09]} d6 {[%emt 0:05:46]} 6. d4 {[%emt 0:01:36]} Bg7 {[%emt 0:05:30]} 7. c3 {[%emt 0:01:27]} h6 {[%emt 0:08:46]} 8. h4 {[%emt 0:02:29] C38: King's Gambit Accepted: 3 Nf3 g5 4 Bc4 Bg7.} Qe7 $17 {[%emt 0:10:15]} 9. a4 {[%emt 0:00:54]} Bg4 $5 {[%emt 0:04:35][%mdl 4] [#] A promising side line.} (9... Qxe4 $2 10. Re1 $18 (10. hxg5 Nge7 $15) (10. hxg5 Nge7 $15)) (9... gxh4 $6 10. Bxf4 h3 11. Nbd2 $11) 10. b4 $146 {[%emt 0:34:07] Black is better.} ({Predecessor:} 10. Qd3 O-O-O 11. a5 Nf6 12. a6 b6 13. Na3 Kb8 14. Nc2 d5 15. exd5 Nxd5 16. Bb3 {0-1 Dyda,T (2179)-Szabo,M (2254) RM-2014-0-00147}) 10... Nf6 {[%emt 0:02:46]} (10... Qxe4 $2 11. Re1 $18) 11. Nbd2 {[%emt 0:12:55]} Nh5 {[%emt 0:04:31] Black is more active.} (11... Nxe4 12. Nxe4 Bxf3 13. gxf3 $18) 12. Nb3 {[%emt 0:07:26]} Nd8 {[%emt 0:02:58]} (12... gxh4 13. e5 $17 (13. b5 Nd8 $17)) (12... Qxe4 $2 13. Re1 $18 (13. hxg5 $2 O-O-O $19) (13. hxg5 $2 O-O-O $19)) ({Black should try} 12... Qd7 $19 13. Qd3 Ng3) 13. Re1 {[%emt 0:03:05]} Be6 {[%emt 0:09:23]} 14. Bf1 {[%emt 0:08:45][%mdl 8192]} (14. d5 $17 Bg4 15. Nbd4) 14... g4 $19 {[%emt 0:03:42][%mdl 64] Hoping for ...Bxb3. Deflection} ({Worse is} 14... gxh4 15. e5 O-O 16. b5 $11) 15. Nh2 {[%emt 0:11:03]} Qxh4 {[%emt 0:00:39]} 16. c4 {[%emt 0:02:06]} (16. Nd2 $142) 16... f3 {[%emt 0:03:31]} 17. gxf3 {[%emt 0:00:13]} g3 {[%emt 0:00:08][%csl Gg3][%cal Rh4h2]} 18. Ra2 {[%emt 0:00:03][%cal Ba1a2,Ba2h2,Bh2h5][%mdl 32]} gxh2+ {[%emt 0:03:31]} (18... Nc6 $19 19. Ng4 Nxb4) 19. Rxh2 $15 {[%emt 0:00:05] [#]} Qf6 {[%emt 0:00:23][%cal Oh8g8] White must now prevent ...Rg8!} 20. e5 $1 {[%emt 0:04:38]} dxe5 {[%emt 0:02:06]} 21. dxe5 {[%emt 0:00:10]} Qe7 {[%emt 0:07:40] ...Ng3 is the strong threat.} 22. Rxh5 {[%emt 0:01:08]} Qxb4 {[%emt 0:00:09]} 23. Nd4 {[%emt 0:08:17] [#]} Bf8 {[%emt 0:01:57]} (23... Bd7 $1 $17 {And now ...Ne6 would win.} 24. Be3 Ne6 25. Nxe6 Bxe6) 24. Nb5 $1 $11 {[%emt 0:03:48]} Qa5 $132 {[%emt 0:00:39][%mdl 2048] Strongly threatening ...Bb4. Black is fighting back} (24... Bxc4 $2 25. Nxc7+ Ke7 26. Qd6+ Qxd6 27. exd6+ Kd7 28. Bxc4 $18) (24... Rg8+ {looks sharper.} 25. Kh1 Qa5 26. Bd2 Qb6) 25. Kh2 {[%emt 0:01:14]} (25. Bd2 $1 $11 Qb6+ 26. Kh1 (26. Be3 Qa5 $11)) 25... Nc6 $17 {[%emt 0:01:43]} 26. Bd2 $1 {[%emt 0:02:28] [#]} Bb4 {[%emt 0:02:06]} ({Better is} 26... Nb4 $1 $17 27. Nd4 O-O-O 28. Nxe6 fxe6) 27. Bxb4 $11 {[%emt 0:01:23]} Nxb4 {[%emt 0:00:08]} 28. f4 $1 {[%emt 0:01:00][%cal Bf3f4,Bf4f5][%mdl 32]} Nc6 {[%emt 0:04:09] ...Rd8 would be deadly.} 29. f5 $1 {[%emt 0:02:44]} Rd8 {[%emt 0:00:37][%mdl 64] Deflection} 30. Qg4 {[%emt 0:01:06][%mdl 8192]} (30. Qc1 $11 Qd2+ 31. Kh1 Qxc1 32. Rxc1) 30... Qxe1 $19 {[%emt 0:02:11]} 31. fxe6 {[%emt 0:00:07]} Qxf1 {[%emt 0:01:03] Artfully played by Vrolijk.   Weighted Error Value: White=0.59/Black=0.44} 0-1

[Event "86th Tata Steel Challengers 2024"]
[Site "Scheveningen"]
[Date "2024.01.23"]
[Round "9.5"]
[White "Maurizzi, Marc`Andria"]
[Black "Divya Deshmukh"]
[Result "1-0"]
[ECO "D79"]
[WhiteElo "2572"]
[BlackElo "2420"]
[Annotator "TA"]
[PlyCount "101"]
[EventDate "2024.01.02"]
[EventType "tourn"]
[EventCountry "NED"]
[SourceTitle "playchess.com"]
[Source "ChessBase"]
[SourceQuality "1"]
[TimeControl "40/6000+30:20/3000+30:900+30"]

{[%evp 20,101,31,26,20,18,29,0,5,0,8,12,0,0,13,15,22,15,22,14,21,19,11,9,42,24,39,33,40,45,43,46,52,52,135,135,161,36,31,0,154,148,149,163,147,162,164,154,205,205,235,207,220,171,177,176,170,177,178,178,182,181,183,183,185,184,185,185,185,186,186,179,175,175,320,294,450,418,502,491,569,562,758,736]} 1. Nf3 {[%emt 0:00:27]} Nf6 {[%emt 0:00:07]} 2. g3 {[%emt 0:00:04]} c5 {[%emt 0:00:05]} 3. Bg2 {[%emt 0:02:22]} g6 {[%emt 0:00:17]} 4. O-O {[%emt 0:06:40]} Bg7 {[%emt 0:00:05]} 5. c3 {[%emt 0:06:52]} O-O {[%emt 0:00:14]} 6. d4 {[%emt 0:00:03]} cxd4 {[%emt 0:01:58]} 7. cxd4 {[%emt 0:00:09]} d5 {[%emt 0:00:11]} 8. Nc3 {[%emt 0:00:03]} Nc6 {[%emt 0:00:13]} 9. Ne5 {[%emt 0:00:02]} e6 {[%emt 0:04:16]} 10. Nxc6 {[%emt 0:04:33]} bxc6 {[%emt 0:00:07]} 11. b3 {[%emt 0:00:57]} Re8 {[%emt 0:08:23]} 12. Bb2 {[%emt 0:05:58]} Ba6 {[%emt 0:09:05]} 13. Na4 {[%emt 0:12:13]} Nd7 {[%emt 0:03:17] Die Stellung ist ausgeglichen.} 14. Qd2 {[%emt 0:00:39]} Bb5 {[%emt 0:11:05]} 15. Nc3 {[%emt 0:01:13]} Qb6 {[%emt 0:02:02]} 16. Nxb5 {[%emt 0:05:47]} Qxb5 {[%emt 0:03:28]} 17. Rfc1 {[%emt 0:03:03]} a5 {[%emt 0:00:45][%cal Ba7a5,Ba5a4,Ba4a3][%mdl 32]} 18. e3 {[%emt 0:01:20]} a4 {[%emt 0:07:48]} 19. Bf1 {[%emt 0:01:14]} Qb7 {[%emt 0:00:25]} 20. b4 {[%emt 0:01:32]} a3 {[%emt 0:22:46]} 21. Bc3 {[%emt 0:00:12]} Reb8 {[%emt 0:07:18][%cal Be8b8,Bb8b6,Bb6b4][%mdl 32]} 22. Rab1 {[%emt 0:02:55][%cal Ba1b1,Bb1b3,Bb3c3][%mdl 32]} Nf6 {[%emt 0:00:58]} 23. Qc2 {[%emt 0:04:03]} Qd7 {[%emt 0:01:31]} 24. Rb3 {[%emt 0:05:00]} Ne4 {[%emt 0:05:03]} 25. Be1 {[%emt 0:01:00]} Rb6 {[%emt 0:01:23]} 26. Bd3 {[%emt 0:02:13]} Nd6 {[%emt 0:00:35] [#]} (26... Ng5 $14) 27. Rc3 $1 $16 {[%emt 0:03:53]} Qd8 {[%emt 0:04:03]} 28. Rb1 {[%emt 0:12:51]} ({Besser ist} 28. Rxc6 $18 Rxc6 29. Qxc6) 28... Qe8 $14 {[%emt 0:09:20]} 29. Rc1 {[%emt 0:02:48]} (29. Qc1 $14) 29... Qd8 $1 $16 {[%emt 0:01:53] Weiß behält die Zügel nun fest in der Hand.} 30. Bd2 $36 {[%emt 0:01:06][%mdl 2048] Schwarz muss aufpassen.} Rxb4 {[%emt 0:04:31] [#]} 31. Rxa3 $3 {[%emt 0:00:13][%mdl 512]} Rbb8 {[%emt 0:00:02]} (31... Rb1 32. Rxb1) 32. Rxa8 {[%emt 0:00:27]} Rxa8 {[%emt 0:00:02]} 33. a4 {[%emt 0:00:16][%cal Ba2a4,Ba4a5][%mdl 32]} (33. Qxc6 Rxa2 34. Rc2 Rxc2 35. Qxc2 Qb8 $11) 33... Bf8 {[%emt 0:01:28]} (33... Nc4 $16) 34. a5 $18 {[%emt 0:01:12]} ({Lieber nicht} 34. Qxc6 Rc8 35. Qa6 Ra8 $11) 34... Nc4 {[%emt 0:00:25]} 35. Bxc4 {[%emt 0:00:30]} dxc4 {[%emt 0:00:02]} 36. Be1 {[%emt 0:03:49]} Qd5 {[%emt 0:02:40]} 37. Qxc4 {[%emt 0:00:21]} Qxc4 {[%emt 0:00:07]} 38. Rxc4 {[%emt 0:00:04][%mdl 4096] Endspiel. KRB-KRB} Ra6 {[%emt 0:00:01]} 39. Kf1 {[%emt 0:02:47]} Bd6 {[%emt 0:00:15]} 40. Ke2 {[%emt 0:00:52]} Kf8 {[%emt 0:00:17]} 41. Kd3 {[%emt 0:52:11]} Ke7 {[%emt 0:51:39]} 42. Rc2 {[%emt 0:04:29]} Kd7 {[%emt 0:00:00]} 43. Kc4 {[%emt 0:00:00]} Kc8 {[%emt 0:00:00]} 44. e4 {[%emt 0:00:00][%cal Be3e4,Be4e5][%mdl 32]} Bc7 {[%emt 0:00:00]} 45. Ra2 {[%emt 0:00:00]} Kb7 {[%emt 0:00:00]} 46. e5 {[%emt 0:00:00] Schwarz muss nun Ra3 beachten.} Ra7 {[%emt 0:00:00]} (46... Kc8 $142 47. Ra3 Kd7) 47. Bb4 {[%emt 0:00:00]} (47. Kc5 Ra6 48. Ra3 Kc8 $14) 47... Ka6 {[%emt 0:00:00]} (47... Bd8 {war angesagt.} 48. Ra3 g5 49. a6+ Rxa6) 48. Bc5 {[%emt 0:00:00]} Ra8 {[%emt 0:00:00] [#]} 49. Bb6 $1 {[%emt 0:00:00][%mdl 512] Weiß steht klar auf Gewinn.} Bd8 {[%emt 0:00:00]} (49... Kb7 50. Bxc7) 50. Kc5 {[%emt 0:00:00]} Rc8 {[%emt 0:00:00]} 51. Kd6 {[%emt 0:00:00] Pariert Be7+.   Gewichteter Fehlerwert: Weiß=0.11 (sehr präzise) /Schwarz=0.22 (präzise) .  Fehler:       	Weiß=2     	Schwarz=4     Ungenau:       	Weiß=1     	Schwarz=2     OK:         	Weiß=18    	Schwarz=11    Bester:       	Weiß=2     	---        Stark:        	Weiß=1     	Schwarz=1     Brilliant:      	Weiß=1     	---} 1-0